[Event "Early-Titled-Tuesday-Blitz-June-18-2024"]
[Site "Chess.com"]
[Date "2024.06.18"]
[Round "4"]
[White "Chopper1905"]
[Black "Ordekalog"]
[Result "0-1"]
[WhiteElo "2904"]
[BlackElo "2635"]
[TimeControl "180+1"]
[EndTime "8:42:07 PDT"]
[Termination "Ordekalog won by resignation"]

1. d4 {[%clk 0:03:00.9]} 1... d5 {[%clk 0:02:59.3]} 2. c4 {[%clk 0:03:00.6]}
2... e6 {[%clk 0:02:59.4]} 3. Nc3 {[%clk 0:02:59.9]} 3... c5 {[%clk 0:02:59.3]}
4. e3 {[%clk 0:02:58.9]} 4... Nf6 {[%clk 0:02:58.6]} 5. Nf3 {[%clk 0:02:58.3]}
5... Nc6 {[%clk 0:02:58.5]} 6. a3 {[%clk 0:02:57.6]} 6... a6 {[%clk 0:02:58.2]}
7. dxc5 {[%clk 0:02:56.3]} 7... Bxc5 {[%clk 0:02:57.9]} 8. b4 {[%clk 0:02:56]}
8... Ba7 {[%clk 0:02:57.6]} 9. Ra2 {[%clk 0:02:56]} 9... O-O {[%clk 0:02:40.7]}
10. Rd2 {[%clk 0:02:55.1]} 10... Ne7 {[%clk 0:02:41.3]} 11. Bb2 {[%clk
0:02:40.8]} 11... Bd7 {[%clk 0:02:33]} 12. cxd5 {[%clk 0:02:28]} 12... exd5
{[%clk 0:02:30.9]} 13. Bd3 {[%clk 0:02:26]} 13... Rc8 {[%clk 0:02:24.9]} 14. O-O
{[%clk 0:02:25.8]} 14... Bb8 {[%clk 0:02:23.9]} 15. Ne2 {[%clk 0:02:20.1]} 15...
Ng6 {[%clk 0:02:18.8]} 16. Ng3 {[%clk 0:02:08.7]} 16... Re8 {[%clk 0:02:09.8]}
17. Qa1 {[%clk 0:02:06.9]} 17... Rc6 {[%clk 0:01:47.7]} 18. Rfd1 {[%clk
0:02:04.3]} 18... Qc7 {[%clk 0:01:44.8]} 19. Bxf6 {[%clk 0:01:53.3]} 19... Rxf6
{[%clk 0:01:43.8]} 20. Nh5 {[%clk 0:01:53.6]} 20... Ree6 {[%clk 0:01:25.4]} 21.
Bf5 {[%clk 0:01:33]} 21... Nh4 {[%clk 0:01:05.9]} 22. Nxf6+ {[%clk 0:00:49.9]}
22... Rxf6 {[%clk 0:01:04.7]} 23. Nxh4 {[%clk 0:00:19.1]} 23... Qxh2+ {[%clk
0:01:01.9]} 24. Kf1 {[%clk 0:00:19.5]} 24... Bb5+ {[%clk 0:00:12]} 25. Bd3
{[%clk 0:00:14.1]} 25... Qh1+ {[%clk 0:00:12]} 26. Ke2 {[%clk 0:00:14.3]} 26...
Qxh4 {[%clk 0:00:12.9]} 27. Bxb5 {[%clk 0:00:14.6]} 27... Rxf2+ {[%clk
0:00:08.6]} 28. Kd3 {[%clk 0:00:14.2]} 28... Qe4+ {[%clk 0:00:08.6]} 29. Kc3
{[%clk 0:00:13.8]} 29... Be5+ {[%clk 0:00:08.5]} 30. Kb3 {[%clk 0:00:06.7]}
30... Bxa1 {[%clk 0:00:07.8]} 31. Rxf2 {[%clk 0:00:05.4]} 31... Qxe3+ {[%clk
0:00:05.9]} 32. Bd3 {[%clk 0:00:06.1]} 32... Qxf2 {[%clk 0:00:04.1]} 33. Rxa1
{[%clk 0:00:06.8]} 33... Qxg2 {[%clk 0:00:03.3]} 34. Re1 {[%clk 0:00:07.1]}
34... g6 {[%clk 0:00:03.5]} 35. Kc3 {[%clk 0:00:04.4]} 35... Qg3 {[%clk
0:00:03.7]} 36. Re8+ {[%clk 0:00:04.4]} 36... Kg7 {[%clk 0:00:04.1]} 37. Re7
{[%clk 0:00:05.3]} 37... Qf4 {[%clk 0:00:04.2]} 38. Rxb7 {[%clk 0:00:04.8]}
38... h5 {[%clk 0:00:04.5]} 39. Bxa6 {[%clk 0:00:03.4]} 39... h4 {[%clk
0:00:04.3]} 40. Rd7 {[%clk 0:00:02.9]} 40... Qe3+ {[%clk 0:00:04.2]} 41. Kc2
{[%clk 0:00:01.8]} 41... Qe4+ {[%clk 0:00:03.7]} 42. Kb3 {[%clk 0:00:02.4]}
42... Qf3+ {[%clk 0:00:03.3]} 43. Ka4 {[%clk 0:00:02.4]} 43... h3 {[%clk
0:00:04.2]} 44. Bb7 {[%clk 0:00:03]} 44... Qf4 {[%clk 0:00:03.7]} 45. Bxd5
{[%clk 0:00:03.5]} 45... Qf5 {[%clk 0:00:03.8]} 46. Rd6 {[%clk 0:00:02.2]} 46...
h2 {[%clk 0:00:04.3]} 47. b5 {[%clk 0:00:02.7]} 47... Qf4+ {[%clk 0:00:03.7]}
48. Ka5 {[%clk 0:00:03.3]} 48... Qxd6 {[%clk 0:00:04.6]} 49. Bb7 {[%clk
0:00:03.9]} 49... Qc5 {[%clk 0:00:04.6]} 50. Ka6 {[%clk 0:00:04.2]} 50... Qg1
{[%clk 0:00:05.1]} 51. a4 {[%clk 0:00:05.1]} 51... h1=Q {[%clk 0:00:05.7]} 52.
Bxh1 {[%clk 0:00:05.2]} 52... Qxh1 {[%clk 0:00:06.6]} 53. b6 {[%clk 0:00:06]}
53... Qa8+ {[%clk 0:00:06.9]} 54. Kb5 {[%clk 0:00:06.6]} 54... Kf6 {[%clk
0:00:07.6]} 55. a5 {[%clk 0:00:07.5]} 55... Ke7 {[%clk 0:00:07.9]} 56. a6 {[%clk
0:00:08.4]} 56... Kd6 {[%clk 0:00:08.1]} 57. b7 {[%clk 0:00:09.3]} 57... Qa7
{[%clk 0:00:08.6]} 58. Ka5 {[%clk 0:00:09.5]} 58... Kc7 {[%clk 0:00:09]} 59. Kb5
{[%clk 0:00:10.4]} 59... Kb8 {[%clk 0:00:09.2]} 60. Kc6 {[%clk 0:00:10.9]} 60...
g5 {[%clk 0:00:10.1]} 61. Kd7 {[%clk 0:00:11.8]} 61... g4 {[%clk 0:00:10.7]} 62.
Ke8 {[%clk 0:00:12.7]} 62... g3 {[%clk 0:00:11]} 63. Kxf7 {[%clk 0:00:13.6]}
63... g2 {[%clk 0:00:11.1]} 64. Ke6 {[%clk 0:00:14.5]} 64... g1=Q {[%clk
0:00:11.3]} 65. Kd7 {[%clk 0:00:15.4]} 0-1

[Event "Early-Titled-Tuesday-Blitz-June-18-2024"]
[Site "Chess.com"]
[Date "2024.06.18"]
[Round "4"]
[White "Adar_07"]
[Black "dosto07"]
[Result "1-0"]
[WhiteElo "2810"]
[BlackElo "2617"]
[TimeControl "180+1"]
[EndTime "8:42:08 PDT"]
[Termination "Adar_07 won by resignation"]

1. e4 {[%clk 0:03:00.9]} 1... e5 {[%clk 0:03:00.2]} 2. Nf3 {[%clk 0:02:59.4]}
2... Nc6 {[%clk 0:03:00.5]} 3. Bb5 {[%clk 0:02:56.2]} 3... a6 {[%clk 0:03:00.2]}
4. Ba4 {[%clk 0:02:55.5]} 4... Nf6 {[%clk 0:03:00.8]} 5. O-O {[%clk 0:02:54.2]}
5... Be7 {[%clk 0:03:01.3]} 6. Re1 {[%clk 0:02:52.6]} 6... b5 {[%clk 0:03:01.8]}
7. Bb3 {[%clk 0:02:52.4]} 7... d6 {[%clk 0:03:02.3]} 8. c3 {[%clk 0:02:41.9]}
8... O-O {[%clk 0:03:02]} 9. h3 {[%clk 0:02:41.7]} 9... Bb7 {[%clk 0:02:58.8]}
10. d4 {[%clk 0:02:39.2]} 10... Re8 {[%clk 0:02:58.6]} 11. Ng5 {[%clk
0:02:35.8]} 11... Rf8 {[%clk 0:02:58.2]} 12. Nf3 {[%clk 0:02:36.1]} 12... Re8
{[%clk 0:02:58.6]} 13. Bg5 {[%clk 0:02:31.1]} 13... h6 {[%clk 0:02:51.9]} 14.
Bh4 {[%clk 0:02:29.9]} 14... Nh5 {[%clk 0:02:41.2]} 15. Bxe7 {[%clk 0:02:28.4]}
15... Qxe7 {[%clk 0:02:39]} 16. Nxe5 {[%clk 0:01:44.9]} 16... dxe5 {[%clk
0:02:33.2]} 17. Qxh5 {[%clk 0:01:43.8]} 17... exd4 {[%clk 0:02:31.9]} 18. Bd5
{[%clk 0:01:41.5]} 18... Rab8 {[%clk 0:01:59.8]} 19. Bxc6 {[%clk 0:01:31.5]}
19... Bxc6 {[%clk 0:01:59.8]} 20. cxd4 {[%clk 0:01:32]} 20... Qb4 {[%clk
0:01:42.7]} 21. Nc3 {[%clk 0:01:22.6]} 21... Qxb2 {[%clk 0:01:35.8]} 22. Qc5
{[%clk 0:01:23.1]} 22... b4 {[%clk 0:01:14.8]} 23. Qxc6 {[%clk 0:01:13.3]} 23...
Qxc3 {[%clk 0:00:58.3]} 24. Qxc3 {[%clk 0:01:04.2]} 24... bxc3 {[%clk
0:00:58.5]} 25. Rac1 {[%clk 0:01:04.8]} 25... Rb4 {[%clk 0:00:58.4]} 26. Rxc3
{[%clk 0:00:56.7]} 26... Rxd4 {[%clk 0:00:58.4]} 27. f3 {[%clk 0:00:51.4]} 27...
Ra4 {[%clk 0:00:48.7]} 28. Re2 {[%clk 0:00:49.9]} 28... Re7 {[%clk 0:00:48.8]}
29. Rd3 {[%clk 0:00:46.2]} 29... g5 {[%clk 0:00:43.8]} 30. Rc2 {[%clk
0:00:44.3]} 30... Kg7 {[%clk 0:00:41.2]} 31. Kf2 {[%clk 0:00:44.4]} 31... c5
{[%clk 0:00:34]} 32. Kg3 {[%clk 0:00:40]} 32... c4 {[%clk 0:00:28.9]} 33. Rd6
{[%clk 0:00:39]} 33... Rc7 {[%clk 0:00:23.3]} 34. h4 {[%clk 0:00:35.1]} 34...
Rc5 {[%clk 0:00:17]} 35. hxg5 {[%clk 0:00:32.8]} 35... hxg5 {[%clk 0:00:17.3]}
36. Kg4 {[%clk 0:00:33]} 36... c3 {[%clk 0:00:16.3]} 37. Kh5 {[%clk 0:00:21.8]}
37... a5 {[%clk 0:00:10.5]} 38. Rd5 {[%clk 0:00:17.5]} 38... Rxd5 {[%clk
0:00:08.9]} 39. exd5 {[%clk 0:00:17.9]} 39... Kf6 {[%clk 0:00:07.4]} 40. Rxc3
{[%clk 0:00:16.9]} 40... Rxa2 {[%clk 0:00:07.6]} 41. Rc6+ {[%clk 0:00:16.3]}
41... Ke7 {[%clk 0:00:07.5]} 42. g4 {[%clk 0:00:16.3]} 42... Rd2 {[%clk
0:00:06.9]} 43. Rc5 {[%clk 0:00:15.9]} 43... a4 {[%clk 0:00:06.7]} 44. Kxg5
{[%clk 0:00:15.6]} 44... Rd3 {[%clk 0:00:06.3]} 45. f4 {[%clk 0:00:14.7]} 45...
a3 {[%clk 0:00:06]} 46. Ra5 {[%clk 0:00:14.4]} 46... Kd6 {[%clk 0:00:06.1]} 47.
f5 {[%clk 0:00:14]} 47... Kc7 {[%clk 0:00:04]} 48. Kf6 {[%clk 0:00:13.9]} 48...
Kb6 {[%clk 0:00:04.2]} 49. Ra8 {[%clk 0:00:13.7]} 49... Kb7 {[%clk 0:00:04]} 50.
Ra4 {[%clk 0:00:14.2]} 50... Kb6 {[%clk 0:00:03.2]} 51. Kxf7 {[%clk 0:00:14.6]}
51... Kb5 {[%clk 0:00:04.1]} 52. Ra8 {[%clk 0:00:14.7]} 52... Rxd5 {[%clk
0:00:04.2]} 53. Rxa3 {[%clk 0:00:13.4]} 53... Kb4 {[%clk 0:00:04.8]} 54. Rg3
{[%clk 0:00:13.4]} 54... Kc4 {[%clk 0:00:04.2]} 55. f6 {[%clk 0:00:13.8]} 55...
Kd4 {[%clk 0:00:03.9]} 56. g5 {[%clk 0:00:14.3]} 56... Rd7+ {[%clk 0:00:03.7]}
57. Kg8 {[%clk 0:00:13.3]} 57... Ra7 {[%clk 0:00:03.9]} 58. f7 {[%clk
0:00:13.7]} 58... Ke5 {[%clk 0:00:03.8]} 59. f8=Q {[%clk 0:00:13.6]} 59... Rd7
{[%clk 0:00:03.3]} 60. Qf6+ {[%clk 0:00:12.7]} 60... Kd5 {[%clk 0:00:03.2]} 61.
Rd3+ {[%clk 0:00:12.4]} 1-0

[Event "Early-Titled-Tuesday-Blitz-June-18-2024"]
[Site "Chess.com"]
[Date "2024.06.18"]
[Round "4"]
[White "Oleg_Papayan"]
[Black "Ginger_GM"]
[Result "1/2-1/2"]
[WhiteElo "2565"]
[BlackElo "2633"]
[TimeControl "180+1"]
[EndTime "8:42:08 PDT"]
[Termination "Game drawn by repetition"]

1. d4 {[%clk 0:03:00.9]} 1... e6 {[%clk 0:02:59.4]} 2. Nc3 {[%clk 0:03:00.8]}
2... b6 {[%clk 0:02:55.4]} 3. e4 {[%clk 0:02:57.2]} 3... Bb7 {[%clk 0:02:55.2]}
4. Nf3 {[%clk 0:02:54.1]} 4... d6 {[%clk 0:02:54.9]} 5. Bd3 {[%clk 0:02:52.2]}
5... Nd7 {[%clk 0:02:55.1]} 6. O-O {[%clk 0:02:52.2]} 6... g6 {[%clk 0:02:54.7]}
7. Bg5 {[%clk 0:02:44]} 7... Ne7 {[%clk 0:02:54.4]} 8. Re1 {[%clk 0:02:40.1]}
8... Bg7 {[%clk 0:02:52.8]} 9. a4 {[%clk 0:02:15.3]} 9... a6 {[%clk 0:02:50.9]}
10. Qd2 {[%clk 0:02:09.1]} 10... h6 {[%clk 0:02:50.4]} 11. Bh4 {[%clk
0:02:08.6]} 11... g5 {[%clk 0:02:50.6]} 12. Bg3 {[%clk 0:02:04.3]} 12... Ng6
{[%clk 0:02:50.3]} 13. h3 {[%clk 0:01:45.4]} 13... O-O {[%clk 0:02:46.5]} 14.
Rad1 {[%clk 0:01:41.7]} 14... Nf6 {[%clk 0:02:30.1]} 15. e5 {[%clk 0:01:06.7]}
15... Nh5 {[%clk 0:02:29.5]} 16. exd6 {[%clk 0:00:56.2]} 16... Nxg3 {[%clk
0:02:24.7]} 17. fxg3 {[%clk 0:00:45.3]} 17... Bxf3 {[%clk 0:02:24.3]} 18. gxf3
{[%clk 0:00:46.2]} 18... Qxd6 {[%clk 0:02:24.2]} 19. Ne2 {[%clk 0:00:34.4]}
19... c5 {[%clk 0:02:09.6]} 20. Bxg6 {[%clk 0:00:27.2]} 20... fxg6 {[%clk
0:02:08.9]} 21. Kg2 {[%clk 0:00:27.3]} 21... Rad8 {[%clk 0:01:44.4]} 22. Qd3
{[%clk 0:00:25]} 22... cxd4 {[%clk 0:01:33.3]} 23. Qxg6 {[%clk 0:00:24.8]} 23...
Qd5 {[%clk 0:01:27.7]} 24. Nxd4 {[%clk 0:00:23.8]} 24... Rf6 {[%clk 0:01:19.5]}
25. Qe4 {[%clk 0:00:21]} 25... Qxe4 {[%clk 0:01:17]} 26. fxe4 {[%clk 0:00:16]}
26... Rg6 {[%clk 0:00:52.9]} 27. c3 {[%clk 0:00:15.8]} 27... h5 {[%clk
0:00:49.2]} 28. Nc6 {[%clk 0:00:13.5]} 28... Re8 {[%clk 0:00:47.8]} 29. Rd7
{[%clk 0:00:10.7]} 29... h4 {[%clk 0:00:42.4]} 30. Ne7+ {[%clk 0:00:09.9]} 30...
Rxe7 {[%clk 0:00:40.9]} 31. Rxe7 {[%clk 0:00:10.8]} 31... Be5 {[%clk 0:00:39.5]}
32. g4 {[%clk 0:00:07.6]} 32... Kf8 {[%clk 0:00:36.5]} 33. Rb7 {[%clk 0:00:07]}
33... Ke8 {[%clk 0:00:31.1]} 34. Rd1 {[%clk 0:00:05.2]} 34... Rf6 {[%clk
0:00:29.4]} 35. Rf1 {[%clk 0:00:04.9]} 35... Rg6 {[%clk 0:00:28.7]} 36. Rxb6
{[%clk 0:00:04.3]} 36... Bc7 {[%clk 0:00:26.3]} 37. Rxa6 {[%clk 0:00:03.7]}
37... Kd7 {[%clk 0:00:26.9]} 38. Rd1+ {[%clk 0:00:03.3]} 38... Kc8 {[%clk
0:00:26.7]} 39. Rc6 {[%clk 0:00:02.5]} 39... Kb7 {[%clk 0:00:27.1]} 40. Rc4
{[%clk 0:00:03.3]} 40... Rg7 {[%clk 0:00:25.9]} 41. b4 {[%clk 0:00:03.6]} 41...
Rf7 {[%clk 0:00:26.2]} 42. a5 {[%clk 0:00:03.7]} 42... Bg3 {[%clk 0:00:25.1]}
43. Rf1 {[%clk 0:00:03.7]} 43... Rd7 {[%clk 0:00:25.6]} 44. Rd4 {[%clk
0:00:04.1]} 44... Rc7 {[%clk 0:00:25.7]} 45. c4 {[%clk 0:00:04.7]} 45... Be5
{[%clk 0:00:24.5]} 46. Rd8 {[%clk 0:00:04]} 46... Rxc4 {[%clk 0:00:24.7]} 47.
Rf7+ {[%clk 0:00:04.7]} 47... Ka6 {[%clk 0:00:23.9]} 48. Ra8+ {[%clk 0:00:04.5]}
48... Kb5 {[%clk 0:00:24]} 49. Rb7+ {[%clk 0:00:04.8]} 49... Ka4 {[%clk
0:00:24.1]} 50. a6 {[%clk 0:00:05.2]} 50... Rc2+ {[%clk 0:00:24.5]} 51. Kf1
{[%clk 0:00:05.7]} 51... Bd4 {[%clk 0:00:17.5]} 52. b5 {[%clk 0:00:06.1]} 52...
Kb3 {[%clk 0:00:17.3]} 53. a7 {[%clk 0:00:06.5]} 53... Rc1+ {[%clk 0:00:15.2]}
54. Ke2 {[%clk 0:00:06.6]} 54... Rc2+ {[%clk 0:00:15.4]} 55. Kd3 {[%clk
0:00:07]} 55... e5 {[%clk 0:00:15.9]} 56. Rd8 {[%clk 0:00:06.7]} 56... Rc3+
{[%clk 0:00:16.1]} 57. Kd2 {[%clk 0:00:07]} 57... Rc2+ {[%clk 0:00:16.3]} 58.
Kd1 {[%clk 0:00:06.9]} 58... Kb2 {[%clk 0:00:12.2]} 59. a8=Q {[%clk 0:00:06.6]}
59... Rc1+ {[%clk 0:00:12.6]} 60. Ke2 {[%clk 0:00:07]} 60... Rc2+ {[%clk
0:00:13.1]} 61. Kd3 {[%clk 0:00:07.2]} 61... Rc3+ {[%clk 0:00:13.7]} 62. Ke2
{[%clk 0:00:07.6]} 62... Rc2+ {[%clk 0:00:14.2]} 63. Kf1 {[%clk 0:00:08.2]}
63... Rc1+ {[%clk 0:00:14.6]} 64. Kg2 {[%clk 0:00:08.9]} 64... Rc2+ {[%clk
0:00:15]} 65. Kf3 {[%clk 0:00:09.4]} 65... Rc3+ {[%clk 0:00:15.4]} 66. Ke2
{[%clk 0:00:09.8]} 66... Rc2+ {[%clk 0:00:15.7]} 1/2-1/2

[Event "Early-Titled-Tuesday-Blitz-June-18-2024"]
[Site "Chess.com"]
[Date "2024.06.18"]
[Round "4"]
[White "FairChess_on_YouTube"]
[Black "GothamChess"]
[Result "1-0"]
[WhiteElo "3119"]
[BlackElo "2784"]
[TimeControl "180+1"]
[EndTime "8:42:10 PDT"]
[Termination "FairChess_on_YouTube won by resignation"]

1. d4 {[%clk 0:03:00.9]} 1... g6 {[%clk 0:02:56.9]} 2. e4 {[%clk 0:02:59.8]}
2... Bg7 {[%clk 0:02:57.3]} 3. Nf3 {[%clk 0:03:00]} 3... d6 {[%clk 0:02:56.5]}
4. Bc4 {[%clk 0:02:59.7]} 4... Nf6 {[%clk 0:02:55.8]} 5. Qe2 {[%clk 0:02:59.1]}
5... O-O {[%clk 0:02:52.7]} 6. e5 {[%clk 0:02:56.5]} 6... dxe5 {[%clk
0:02:53.6]} 7. dxe5 {[%clk 0:02:56.8]} 7... Nd5 {[%clk 0:02:54.3]} 8. O-O {[%clk
0:02:56.4]} 8... c6 {[%clk 0:02:48.9]} 9. h3 {[%clk 0:02:54.3]} 9... a5 {[%clk
0:02:44.7]} 10. Rd1 {[%clk 0:02:52.8]} 10... Be6 {[%clk 0:02:28.3]} 11. Nbd2
{[%clk 0:02:38.3]} 11... Nf4 {[%clk 0:02:22.6]} 12. Qf1 {[%clk 0:02:30.5]} 12...
Bxc4 {[%clk 0:02:21.6]} 13. Nxc4 {[%clk 0:02:31.4]} 13... Nd5 {[%clk 0:02:20.3]}
14. e6 {[%clk 0:02:25.7]} 14... fxe6 {[%clk 0:02:07.7]} 15. Qe2 {[%clk
0:02:25.3]} 15... Qc8 {[%clk 0:01:58.6]} 16. Ng5 {[%clk 0:02:03.2]} 16... Rf6
{[%clk 0:01:47.7]} 17. Rxd5 {[%clk 0:01:38.2]} 17... cxd5 {[%clk 0:01:45.1]} 18.
Nb6 {[%clk 0:01:38.6]} 18... Qc6 {[%clk 0:01:30.2]} 19. Nxa8 {[%clk 0:01:38.7]}
19... b6 {[%clk 0:01:20.6]} 20. Be3 {[%clk 0:01:25]} 20... Qxa8 {[%clk
0:01:05.4]} 21. Bd4 {[%clk 0:01:23.7]} 21... Qc6 {[%clk 0:00:21.5]} 22. Bxf6
{[%clk 0:01:20.8]} 22... Bxf6 {[%clk 0:00:20.2]} 23. Nxe6 {[%clk 0:01:11.9]}
23... Bxb2 {[%clk 0:00:17.2]} 24. Rb1 {[%clk 0:01:08.3]} 24... Bf6 {[%clk
0:00:15.8]} 25. Nf4 {[%clk 0:01:03.3]} 25... Nd7 {[%clk 0:00:13.2]} 26. Rd1
{[%clk 0:01:01.9]} 26... d4 {[%clk 0:00:11.9]} 27. Qe6+ {[%clk 0:01:01.6]} 27...
Qxe6 {[%clk 0:00:11.7]} 28. Nxe6 {[%clk 0:01:02.5]} 28... Nc5 {[%clk 0:00:08]}
29. Nxd4 {[%clk 0:00:56.9]} 29... Na4 {[%clk 0:00:08.5]} 30. Nb5 {[%clk
0:00:56.1]} 30... Nb2 {[%clk 0:00:08.8]} 31. Rd7 {[%clk 0:00:54.2]} 31... Nc4
{[%clk 0:00:05.4]} 32. Kf1 {[%clk 0:00:52.8]} 32... Kf7 {[%clk 0:00:03.8]} 33.
Ke2 {[%clk 0:00:53]} 33... Ke6 {[%clk 0:00:02.8]} 34. Rc7 {[%clk 0:00:53]} 34...
Kd5 {[%clk 0:00:03]} 35. Rc8 {[%clk 0:00:49.7]} 35... a4 {[%clk 0:00:02.2]} 36.
Nc7+ {[%clk 0:00:46.9]} 36... Kd4 {[%clk 0:00:01.2]} 37. Nb5+ {[%clk 0:00:44.6]}
37... Kd5 {[%clk 0:00:01.5]} 38. g4 {[%clk 0:00:42.3]} 38... g5 {[%clk
0:00:01.6]} 39. c3 {[%clk 0:00:37.1]} 39... Ne5 {[%clk 0:00:01.6]} 40. Nd4
{[%clk 0:00:31.4]} 40... Ng6 {[%clk 0:00:01.7]} 41. Ke3 {[%clk 0:00:24.3]} 41...
Nf4 {[%clk 0:00:01.2]} 42. Ra8 {[%clk 0:00:24]} 42... Kc4 {[%clk 0:00:01.2]} 43.
Rxa4+ {[%clk 0:00:23.7]} 43... Kxc3 {[%clk 0:00:01.7]} 44. Ne2+ {[%clk
0:00:19.6]} 44... Nxe2 {[%clk 0:00:02]} 45. Kxe2 {[%clk 0:00:20.5]} 45... b5
{[%clk 0:00:02]} 46. Ra6 {[%clk 0:00:19.8]} 46... b4 {[%clk 0:00:02.3]} 47. Ke3
{[%clk 0:00:18.1]} 47... Bd4+ {[%clk 0:00:02.3]} 48. Kf3 {[%clk 0:00:17.3]}
48... Bc5 {[%clk 0:00:02.1]} 49. Ke2 {[%clk 0:00:14.8]} 49... Bd4 {[%clk
0:00:02.3]} 50. f4 {[%clk 0:00:14.5]} 50... gxf4 {[%clk 0:00:01.8]} 51. Kf3
{[%clk 0:00:15.1]} 51... e5 {[%clk 0:00:02.4]} 52. g5 {[%clk 0:00:14.1]} 52...
Kd3 {[%clk 0:00:02.3]} 53. Re6 {[%clk 0:00:14.5]} 53... Kc4 {[%clk 0:00:02.6]}
54. Ke4 {[%clk 0:00:13.9]} 54... Kc3 {[%clk 0:00:02]} 55. h4 {[%clk 0:00:14.1]}
55... Kb2 {[%clk 0:00:02.6]} 56. Ra6 {[%clk 0:00:14.1]} 56... Kc3 {[%clk
0:00:02.6]} 57. h5 {[%clk 0:00:14.2]} 57... f3 {[%clk 0:00:02.3]} 58. Kxf3
{[%clk 0:00:13.8]} 58... Kd3 {[%clk 0:00:03.2]} 59. Re6 {[%clk 0:00:14]} 59...
Kc4 {[%clk 0:00:01.5]} 60. Ke4 {[%clk 0:00:13.6]} 60... Bc3 {[%clk 0:00:01.2]}
61. g6 {[%clk 0:00:13.6]} 61... hxg6 {[%clk 0:00:01.8]} 62. hxg6 {[%clk
0:00:14.5]} 1-0

[Event "Early-Titled-Tuesday-Blitz-June-18-2024"]
[Site "Chess.com"]
[Date "2024.06.18"]
[Round "4"]
[White "Silent-Killer100"]
[Black "Alex_Sahakyan2006"]
[Result "1-0"]
[WhiteElo "2578"]
[BlackElo "2762"]
[TimeControl "180+1"]
[EndTime "8:42:10 PDT"]
[Termination "Silent-Killer100 won by resignation"]

1. Nf3 {[%clk 0:03:00.9]} 1... Nf6 {[%clk 0:02:56.5]} 2. b3 {[%clk 0:03:00.9]}
2... g6 {[%clk 0:02:55.7]} 3. Bb2 {[%clk 0:03:00.8]} 3... Bg7 {[%clk 0:02:56.6]}
4. e3 {[%clk 0:02:59.3]} 4... O-O {[%clk 0:02:55.2]} 5. Be2 {[%clk 0:02:59.2]}
5... c5 {[%clk 0:02:55.1]} 6. O-O {[%clk 0:02:58.6]} 6... Nc6 {[%clk 0:02:52.8]}
7. Ne5 {[%clk 0:02:57.1]} 7... Qc7 {[%clk 0:02:43.1]} 8. Nxc6 {[%clk 0:02:56.6]}
8... dxc6 {[%clk 0:02:42.8]} 9. f4 {[%clk 0:02:50.2]} 9... Rd8 {[%clk
0:02:39.3]} 10. Bf3 {[%clk 0:02:49]} 10... Nd5 {[%clk 0:02:35.6]} 11. Bxg7
{[%clk 0:02:44.3]} 11... Kxg7 {[%clk 0:02:28.7]} 12. Qe2 {[%clk 0:02:28.8]}
12... e5 {[%clk 0:02:18.4]} 13. g3 {[%clk 0:01:46]} 13... Bh3 {[%clk 0:02:08]}
14. Bg2 {[%clk 0:01:21.7]} 14... Bxg2 {[%clk 0:02:06.6]} 15. Qxg2 {[%clk
0:01:22.6]} 15... f5 {[%clk 0:01:51.5]} 16. Na3 {[%clk 0:01:01.9]} 16... exf4
{[%clk 0:01:07.2]} 17. exf4 {[%clk 0:00:46.5]} 17... b5 {[%clk 0:00:57.3]} 18.
c4 {[%clk 0:00:41.2]} 18... Nf6 {[%clk 0:00:55.5]} 19. cxb5 {[%clk 0:00:40.6]}
19... Ne4 {[%clk 0:00:52.1]} 20. Rfd1 {[%clk 0:00:36.1]} 20... cxb5 {[%clk
0:00:49.9]} 21. d3 {[%clk 0:00:34.7]} 21... Nc3 {[%clk 0:00:34.9]} 22. Re1
{[%clk 0:00:32.2]} 22... c4 {[%clk 0:00:24.2]} 23. Qb2 {[%clk 0:00:24]} 23...
Qc5+ {[%clk 0:00:19.4]} 24. Kf1 {[%clk 0:00:18.8]} 24... cxd3 {[%clk 0:00:13.4]}
25. Nxb5 {[%clk 0:00:18.6]} 25... d2 {[%clk 0:00:13.7]} 26. Nxc3 {[%clk
0:00:09.1]} 26... dxe1=Q+ {[%clk 0:00:13.8]} 27. Rxe1 {[%clk 0:00:10]} 27... Kh6
{[%clk 0:00:13.6]} 28. Na4 {[%clk 0:00:08]} 28... Qc6 {[%clk 0:00:12.7]} 29. Kg1
{[%clk 0:00:07.8]} 29... Re8 {[%clk 0:00:11.2]} 30. Rd1 {[%clk 0:00:07.4]} 30...
Rad8 {[%clk 0:00:09.8]} 31. Rf1 {[%clk 0:00:07.8]} 31... Rd3 {[%clk 0:00:08]}
32. Qf2 {[%clk 0:00:08]} 32... Rde3 {[%clk 0:00:07.5]} 33. g4 {[%clk 0:00:07.9]}
33... Re2 {[%clk 0:00:05.7]} 34. Qh4+ {[%clk 0:00:08.2]} 34... Kg7 {[%clk
0:00:06.4]} 35. Qg3 {[%clk 0:00:04.2]} 35... Qd5 {[%clk 0:00:05.1]} 36. gxf5
{[%clk 0:00:03.8]} 36... Qxf5 {[%clk 0:00:05.6]} 37. Nc3 {[%clk 0:00:04.2]}
37... R2e3 {[%clk 0:00:05.5]} 38. Qf2 {[%clk 0:00:04.6]} 38... Rxc3 {[%clk
0:00:05.1]} 39. Qxa7+ {[%clk 0:00:05.1]} 39... Kg8 {[%clk 0:00:04]} 40. Qd4
{[%clk 0:00:05.7]} 40... Qg4+ {[%clk 0:00:04.4]} 41. Kh1 {[%clk 0:00:05.5]}
41... Rf3 {[%clk 0:00:04.8]} 42. Qd5+ {[%clk 0:00:05.9]} 42... Kg7 {[%clk
0:00:04.4]} 43. Qxf3 {[%clk 0:00:06.8]} 43... Qf5 {[%clk 0:00:04.5]} 44. Qf2
{[%clk 0:00:06.9]} 44... Qe4+ {[%clk 0:00:04.6]} 45. Kg1 {[%clk 0:00:07.4]}
45... Re5 {[%clk 0:00:04.4]} 46. Rd1 {[%clk 0:00:07.9]} 46... Re7 {[%clk
0:00:04.1]} 47. Qd4+ {[%clk 0:00:05.7]} 47... Kh6 {[%clk 0:00:04.4]} 48. Qxe4
{[%clk 0:00:05.7]} 48... Rxe4 {[%clk 0:00:05.3]} 49. Rf1 {[%clk 0:00:06]} 49...
Re2 {[%clk 0:00:05.8]} 50. Rf2 {[%clk 0:00:06.9]} 50... Re1+ {[%clk 0:00:05.8]}
51. Kg2 {[%clk 0:00:07.3]} 51... Ra1 {[%clk 0:00:05]} 52. Rb2 {[%clk 0:00:07.1]}
52... Kg7 {[%clk 0:00:04.8]} 53. b4 {[%clk 0:00:07.5]} 53... Kf7 {[%clk
0:00:05.5]} 54. b5 {[%clk 0:00:07.9]} 54... Ke7 {[%clk 0:00:02.9]} 55. b6 {[%clk
0:00:08.2]} 55... Rxa2 {[%clk 0:00:02.4]} 56. Rxa2 {[%clk 0:00:08.1]} 1-0